bitfinex/quotes_SOLUSD_20241216
["timestamp","ask_amount","ask_price","bid_price","bid_amount"]
[1734334179017,10.0639,223.57,223.44,11.29534545]
[1734334179819,10.0639,223.57,223.45,0.12549]
[1734334186321,10.0639,223.57,223.45,0.25098]
[1734334191197,1.653,223.58,223.48,0.37647]
[1734334192238,1.653,223.58,223.48,1.04748055]
[1734334200029,1.653,223.58,223.48,0.37647]
[1734334205636,1.653,223.58,223.53,0.12549]
[1734334205937,1.653,223.58,223.53,20.25098]
[1734334207142,1.653,223.58,223.53,27.8773783]
[1734334207339,7.8584,223.63,223.55,0.12549]
[1734334208843,7.8584,223.63,223.54,0.25098]
[1734334210826,7.8584,223.63,223.56,0.25098]
[1734334211549,1.5013,223.63,223.56,0.25098]
[1734334211847,1.5013,223.63,223.55,0.79632728]
[1734334211848,1.5013,223.63,223.58,0.25098]
[1734334219676,2.1024302,223.67,223.6,0.25098]
[1734334221451,2.1024302,223.67,223.6,5.86633753]
[1734334223882,2.1024302,223.67,223.6,5.61535753]
[1734334224187,2.1024302,223.67,223.54,11.29534545]
[1734334224188,23.776884,223.66,223.54,11.29534545]
[1734334224356,1.5236,223.65,223.5,7.6263983]
[1734334224557,1.5236,223.65,223.53,0.12549]
[1734334225265,10.0608,223.64,223.53,0.12549]
[1734334226762,10.0608,223.64,223.54,0.12549]
[1734334228178,10.0608,223.64,223.55,0.12549]
[1734334228680,1.5236,223.65,223.55,0.12549]
[1734334229481,1.5236,223.65,223.56,0.12549]
[1734334229683,1.5236,223.65,223.57,0.12549]
[1734334229995,1.5236,223.65,223.58,0.12549]
[1734334230494,1.5236,223.65,223.57,0.12549]
[1734334230984,1.5236,223.65,223.58,0.25098]
[1734334234278,1.5236,223.65,223.57,0.12549]
[1734334234482,1.5236,223.65,223.58,0.12549]
[1734334237483,1.5236,223.65,223.51,6.35074693]
[1734334237797,1.5236,223.65,223.55,20.0]
[1734334237997,1.5236,223.65,223.56,0.12549]
[1734334238671,1.5236,223.65,223.56,0.25098]
[1734334239000,1.5236,223.65,223.57,0.12549]
[1734334240290,1.5236,223.65,223.57,0.25098]
[1734334240496,1.5236,223.65,223.58,0.12549]
[1734334246778,1.5236,223.65,223.59,0.12549]
[1734334247095,2.1024302,223.67,223.61,8.0028683]
[1734334247417,2.1024302,223.67,223.63,0.25098]
[1734334249822,2.1024302,223.67,223.63,5.86633753]
[1734334261118,2.1024302,223.67,223.65,0.25098]
[1734334272824,2.1024302,223.67,223.66,0.12549]
[1734334274032,2.1024302,223.67,223.65,0.25098]
[1734334277348,2.1024302,223.67,223.63,5.61535753]
[1734334277476,2.1024302,223.67,223.61,5.67998792]
[1734334277652,2.1024302,223.67,223.62,20.12549]
[1734334278265,2.1024302,223.67,223.59,5.61535753]
[1734334279653,2.1024302,223.67,223.6,0.12549]
[1734334281382,2.1024302,223.67,223.59,5.61535753]
[1734334282257,1.5768,223.65,223.59,5.61535753]
[1734334282465,1.5768,223.65,223.53,6.28614169]
[1734334282667,1.5768,223.65,223.54,0.25098]
[1734334283762,1.5768,223.65,223.55,0.12549]
[1734334284974,1.5768,223.65,223.55,0.79636638]
[1734334285180,1.5768,223.65,223.57,0.12549]
[1734334285561,1.5768,223.65,223.58,0.12549]
[1734334286185,1.5768,223.65,223.57,0.25098]
[1734334286678,1.5768,223.65,223.56,0.12549]
[1734334286883,1.5768,223.65,223.56,0.25098]
[1734334287201,1.5768,223.65,223.56,0.12549]
[1734334290817,10.0608,223.64,223.49,18.92174375]
[1734334291263,10.0608,223.64,223.5,0.25098]
[1734334291580,10.0608,223.64,223.5,11.54632545]
[1734334291781,10.0617,223.62,223.5,11.54632545]
[1734334291990,10.0617,223.62,223.51,0.12549]
[1734334294488,0.09870441,223.59,223.51,0.12549]
[1734334294868,10.16180441,223.59,223.5,5.67998792]
[1734334295081,1.5086,223.58,223.5,5.67998792]
[1734334295410,8.1705,223.58,223.43,1.6453]
[1734334295582,8.1705,223.58,223.44,5.67998792]
[1734334296405,8.1705,223.58,223.45,0.25098]
[1734334296567,8.1705,223.58,223.48,0.12549]
[1734334296888,10.0639,223.57,223.48,0.12549]
[1734334297585,10.0639,223.57,223.44,5.67998792]
[1734334297787,23.776884,223.55,223.44,5.67998792]
[1734334298491,1.6299,223.56,223.44,5.67998792]
[1734334298678,1.6299,223.56,223.45,0.12549]
[1734334298873,1.6299,223.56,223.45,0.25098]
[1734334299384,1.6299,223.56,223.46,0.12549]
[1734334299973,1.6299,223.56,223.45,0.25098]
[1734334302975,1.6299,223.56,223.46,0.12549]
[1734334303201,1.6299,223.56,223.47,0.25098]
[1734334304990,1.6299,223.56,223.44,5.61540352]
[1734334304991,10.0648,223.55,223.44,5.61540352]
[1734334305819,10.0648,223.55,223.45,0.12549]
[1734334314299,10.0648,223.55,223.46,0.12549]
[1734334314884,10.0648,223.55,223.45,0.25098]
[1734334320905,1.6299,223.56,223.47,24.027864]
[1734334321704,1.6299,223.56,223.47,0.12549]
[1734334324618,11.6944,223.56,223.46,0.12549]
[1734334324823,11.6944,223.56,223.45,11.29539144]
[1734334324999,11.6944,223.56,223.46,0.12549]
[1734334329857,11.6944,223.56,223.45,11.29539144]
[1734334330021,1.5402,223.55,223.39,11.29539144]
[1734334330403,1.5402,223.55,223.4,0.12549]
[1734334330598,1.5402,223.55,223.39,11.29539144]
[1734334331004,1.5402,223.55,223.4,0.12549]
[1734334331203,1.5416,223.53,223.42,20.0]
[1734334332613,10.0662,223.52,223.4,0.12549]
[1734334332818,8.0985,223.51,223.4,0.12549]
[1734334333035,8.0985,223.51,223.36,23.902374]
[1734334333547,8.0985,223.51,223.37,0.12549]
[1734334333836,10.0671,223.5,223.37,0.12549]
[1734334334209,10.0671,223.5,223.39,0.12549]
[1734334335922,1.5315,223.49,223.32,6.20925432]
[1734334336133,1.5315,223.49,223.32,11.51453871]
[1734334336314,1.5315,223.49,223.33,7.6263983]
[1734334337013,1.5315,223.49,223.34,8.54886793]
[1734334337014,30.068,223.48,223.34,8.54886793]
[1734334337214,20.0,223.44,223.34,0.67148963]
[1734334337525,1.5315,223.43,223.26,8.29781578]
[1734334338243,1.5315,223.43,223.27,0.25098]
[1734334338543,10.0707,223.42,223.27,0.25098]
[1734334338758,10.0707,223.42,223.3,0.12549]
[1734334338932,10.0707,223.42,223.29,20.0]
[1734334339948,10.0707,223.42,223.3,0.12549]
[1734334340168,1.6038,223.4,223.3,0.12549]
[1734334340335,1.6038,223.4,223.25,5.30528439]
[1734334341154,1.6038,223.4,223.26,0.12549]
[1734334341560,10.072,223.39,223.28,20.0]
[1734334342059,10.072,223.39,223.29,0.12549]
[1734334342418,10.072,223.39,223.25,5.30528439]
[1734334343040,10.072,223.39,223.26,0.12549]
[1734334347938,10.072,223.39,223.26,24.027864]
[1734334348138,10.072,223.39,223.27,0.25098]
[1734334348346,10.072,223.39,223.28,0.25098]
[1734334352038,10.072,223.39,223.27,0.12549]
[1734334352432,10.072,223.39,223.27,0.25098]
[1734334355054,1.6465,223.38,223.27,0.25098]
[1734334356078,1.6465,223.38,223.26,23.776884]
[1734334356079,10.0729,223.37,223.25,5.30528439]
[1734334356280,10.0729,223.37,223.23,7.6263983]
[1734334356281,10.0729,223.37,223.27,0.12549]
[1734334356581,10.0729,223.37,223.27,20.0]
[1734334358867,10.0729,223.37,223.24,0.12549]
[1734334359082,10.0729,223.37,223.25,20.0]
[1734334360071,1.571,223.36,223.25,20.0]
[1734334361266,10.0738,223.35,223.25,20.0]
[1734334361573,10.0738,223.35,223.26,0.12549]
[1734334362566,16.1761,223.35,223.26,0.12549]
[1734334366383,16.1761,223.35,223.25,20.0]
[1734334368973,6.1023,223.35,223.26,0.12549]
[1734334374205,6.1023,223.35,223.25,20.0]
[1734334374379,6.1023,223.35,223.15,6.6616]
[1734334374380,1.504,223.34,223.15,6.6616]
[1734334374584,1.504,223.34,223.2,20.0]
[1734334375176,1.504,223.34,223.21,0.12549]
[1734334375794,10.0747,223.33,223.21,0.12549]
[1734334376307,10.0747,223.33,223.2,0.12549]
[1734334376493,10.0747,223.33,223.2,20.12549]
[1734334377607,10.0747,223.33,223.2,0.12549]
[1734334378589,1.5157,223.32,223.2,0.12549]
[1734334382016,10.0756,223.31,223.19,20.0]
[1734334382320,10.0756,223.31,223.16,10.70099644]
[1734334382321,7.6277,223.3,223.16,10.70099644]
[1734334382692,7.6277,223.3,223.17,0.12549]
[1734334383310,7.6277,223.3,223.17,24.027864]
[1734334386722,7.6277,223.3,223.17,0.12549]
[1734334386723,10.0765,223.29,223.17,0.12549]
[1734334388231,10.0765,223.29,223.17,24.027864]
[1734334389212,1.6382,223.28,223.17,24.027864]
[1734334391862,1.6382,223.28,223.2,20.0]
[1734334392043,1.6382,223.28,223.21,44.69974718]
[1734334392331,6.1569,223.35,223.25,0.12549]
[1734334392451,1.6574,223.34,223.25,0.12549]
[1734334399157,1.6574,223.34,223.24,0.12549]
[1734334399352,1.6574,223.34,223.25,0.12549]
[1734334399960,1.6574,223.34,223.24,0.25098]
[1734334400157,1.6574,223.34,223.24,0.12549]
[1734334401452,1.6574,223.34,223.23,0.12549]
[1734334403347,10.0747,223.33,223.23,0.12549]
[1734334408154,10.0747,223.33,223.21,21.79405931]
[1734334408538,10.0747,223.33,223.22,7.7518883]
[1734334408734,1.6574,223.34,223.22,7.7518883]
[1734334408735,1.6574,223.34,223.24,7.7518883]
[1734334408950,1.6574,223.34,223.24,0.12549]
[1734334409460,1.6574,223.34,223.24,23.902374]
[1734334412084,10.0747,223.33,223.24,0.12549]
[1734334412354,10.0747,223.33,223.22,43.902374]
[1734334412653,10.0747,223.33,223.23,0.12549]
[1734334413353,10.0747,223.33,223.21,0.12549]
[1734334413944,1.6574,223.34,223.23,0.12549]
[1734334415363,1.6574,223.34,223.24,0.12549]
[1734334419356,1.6574,223.34,223.23,0.12549]
[1734334419670,1.6574,223.34,223.25,20.0]
[1734334420160,1.6574,223.34,223.25,0.12549]
[1734334420876,1.6574,223.34,223.25,20.12549]
[1734334422045,1.6574,223.34,223.25,0.12549]
[1734334422258,1.6574,223.34,223.24,0.12549]
[1734334423275,1.6574,223.34,223.24,20.12549]
[1734334425177,11.7321,223.34,223.24,20.0]
[1734334425376,11.7321,223.34,223.23,20.0]
[1734334425682,11.7321,223.34,223.22,0.12549]
[1734334425884,11.7321,223.34,223.22,20.12549]
[1734334428476,11.7321,223.34,223.24,0.12549]
[1734334431214,11.7321,223.34,223.24,20.12549]
[1734334432098,1.6574,223.34,223.24,20.12549]
[1734334432279,1.6574,223.34,223.26,0.12549]
[1734334437891,1.6574,223.34,223.26,0.25098]
[1734334441969,1.6574,223.34,223.26,0.12549]
[1734334457013,10.0747,223.33,223.23,6.99291856]
[1734334457226,10.0747,223.33,223.2,6.99291856]
[1734334457515,1.5735,223.32,223.2,6.99291856]
[1734334458222,10.0756,223.31,223.2,0.12549]
[1734334461024,10.0756,223.31,223.19,0.12549]
[1734334462787,1.5735,223.32,223.18,5.39571205]
[1734334462788,20.0,223.32,223.18,5.39571205]
[1734334463009,1.5386,223.3,223.18,5.39571205]
[1734334463208,1.5386,223.3,223.17,12.29820295]
[1734334463209,6.5717,223.29,223.17,12.29820295]
[1734334463561,6.5717,223.29,223.17,5.30528439]
[1734334463829,6.5717,223.29,223.16,0.12549]
[1734334464236,1.6057,223.27,223.15,6.99291856]
[1734334464530,1.6057,223.27,223.13,12.38863061]
[1734334464531,23.902374,223.26,223.13,12.38863061]
[1734334465215,23.902374,223.26,223.13,5.39571205]
[1734334465423,10.0783,223.25,223.13,5.39571205]
[1734334466193,1.647,223.24,223.13,5.39571205]
[1734334466394,1.647,223.24,223.11,6.99291856]
[1734334466395,6.1947,223.22,223.11,6.99291856]
[1734334467112,6.1947,223.22,223.11,0.12549]
[1734334467323,6.1947,223.22,223.1,7.51838996]
[1734334467324,1.627,223.21,223.1,7.51838996]
[1734334467524,1.627,223.21,223.1,0.5254714]
[1734334468609,1.627,223.21,223.1,20.5254714]
[1734334469245,1.627,223.21,223.11,20.0]
[1734334469723,1.627,223.21,223.12,0.12549]
[1734334470633,1.627,223.21,223.11,0.12549]
[1734334483847,1.627,223.21,223.11,20.12549]
[1734334486260,1.627,223.21,223.11,0.12549]
[1734334486557,1.627,223.21,223.11,20.12549]
[1734334487956,1.627,223.21,223.12,0.12549]
[1734334491430,1.627,223.21,223.11,0.25098]
[1734334491634,1.627,223.21,223.13,0.12549]
[1734334493637,1.627,223.21,223.12,0.25098]
[1734334493836,1.627,223.21,223.12,0.12549]
[1734334494257,1.627,223.21,223.12,20.12549]
[1734334495352,1.627,223.21,223.11,20.12549]
[1734334495851,1.627,223.21,223.12,0.12549]
[1734334496441,1.627,223.21,223.13,0.12549]
[1734334498346,1.627,223.21,223.1,20.5254714]
[1734334498347,10.0806,223.2,223.1,20.5254714]
[1734334499674,10.0806,223.2,223.11,0.12549]
[1734334501156,1.6531,223.19,223.1,0.5254714]
[1734334502384,10.0815,223.18,223.1,0.5254714]
[1734334502666,1.5446,223.15,223.1,0.5254714]
[1734334503652,10.0833,223.14,223.1,0.5254714]
[1734334504161,20.0,223.14,223.1,0.5254714]
[1734334504370,1.5446,223.15,223.1,0.5254714]
[1734334510080,11.6275,223.15,223.1,0.5254714]
[1734334528276,20.1638,223.18,223.1,0.5254714]
[1734334528277,10.0815,223.18,223.1,0.5254714]
[1734334532010,24.027864,223.17,223.1,0.5254714]
[1734334533709,10.0824,223.16,223.1,0.5254714]
[1734334543621,20.0,223.13,223.1,0.5254714]
[1734334544223,10.0824,223.16,223.1,0.5254714]
[1734334546863,21.5742,223.2,223.1,0.5254714]
[1734334547030,10.081,223.19,223.1,0.5254714]
[1734334547223,20.0,223.16,223.1,0.5254714]
[1734334548562,10.081,223.19,223.1,0.5254714]
[1734334548734,10.081,223.19,223.11,0.12549]
[1734334549927,10.081,223.19,223.1,0.5254714]
[1734334558453,10.082,223.17,223.1,0.5254714]
[1734334563695,21.66479,223.11,223.05,6.99291856]
[1734334563855,21.66479,223.11,222.98,6.99291856]
[1734334564058,23.776884,223.1,222.98,6.99291856]
[1734334564656,23.776884,223.1,222.98,0.12549]
[1734334565264,10.0856,223.09,222.96,6.99291856]
[1734334565470,10.0856,223.09,222.95,13.33961856]
[1734334566262,10.0856,223.09,222.95,6.3467]
[1734334567367,10.0856,223.09,222.96,0.12549]
[1734334568069,0.12549,223.06,222.93,6.99291856]
[1734334568277,0.12549,223.06,222.95,20.0]
[1734334568469,20.0,223.04,222.9,6.99291856]
[1734334568671,20.0,223.04,222.91,0.12549]
[1734334568892,20.0,223.04,222.9,6.99291856]
[1734334569187,20.0,223.04,222.9,7.66569774]
[1734334569377,10.0883,223.03,222.9,0.67277918]
[1734334569982,10.0883,223.03,222.91,0.12549]
[1734334570186,10.0883,223.03,222.91,0.25098]
[1734334575000,1.6466,223.05,222.93,0.12549]
[1734334575194,1.6466,223.05,222.95,0.12549]
[1734334576494,1.6466,223.05,222.91,30.76980256]
[1734334576495,20.0,223.0,222.9,6.99291856]
[1734334576679,20.0,223.0,222.88,0.5254714]
[1734334576868,23.902374,222.99,222.88,0.5254714]
[1734334577610,10.0905,222.98,222.88,0.5254714]
[1734334579984,10.0905,222.98,222.89,0.12549]
[1734334585283,1.5965,222.97,222.88,0.5254714]
[1734334585489,10.0914,222.96,222.88,0.5254714]
[1734334588112,6.52959,222.95,222.88,0.5254714]
[1734334588623,20.0,222.92,222.88,0.5254714]
[1734334589103,10.0937,222.91,222.88,0.5254714]
[1734334590316,20.0,222.89,222.88,0.5254714]
[1734334591710,20.0,222.89,222.75,6.4113]
[1734334591711,30.0951,222.88,222.75,6.4113]
[1734334591915,10.0951,222.88,222.75,6.4113]
[1734334592118,10.0951,222.88,222.76,0.12549]
[1734334592323,10.0951,222.88,222.75,6.4113]
[1734334592694,10.0951,222.88,222.76,0.12549]
[1734334595415,10.0951,222.88,222.76,0.25098]
[1734334597292,10.0951,222.88,222.76,0.92413053]
[1734334597993,20.0,222.89,222.78,0.25098]
[1734334598208,1.5965,222.9,222.78,0.25098]
[1734334598209,1.5965,222.9,222.8,0.12549]
[1734334598613,1.5965,222.9,222.8,0.25098]
[1734334601911,1.5589,222.95,222.84,0.12549]
[1734334602118,1.5589,222.95,222.84,0.25098]
[1734334606411,1.5589,222.95,222.86,0.12549]
[1734334606613,1.5589,222.95,222.84,0.12549]
[1734334607915,1.5589,222.95,222.86,0.12549]
[1734334612311,1.5589,222.95,222.85,0.25098]
[1734334612518,11.7524,223.02,222.85,8.55027569]
[1734334613313,14.48873679,223.02,222.85,8.55027569]
[1734334614225,10.0892,223.01,222.85,8.55027569]
[1734334614916,20.0,222.98,222.87,0.25098]
[1734334615931,10.0892,223.01,222.89,0.25098]
[1734334616135,10.0892,223.01,222.89,6.84388]
[1734334617031,10.0892,223.01,222.89,14.4702783]
[1734334617528,10.0892,223.01,222.91,0.25098]
[1734334618705,20.1752,223.05,222.91,0.25098]
[1734334620129,20.0,223.03,222.91,0.25098]
[1734334622245,10.0887,223.02,222.91,0.25098]
[1734334622437,10.0887,223.02,222.89,6.5929]
[1734334622747,20.0,222.99,222.89,6.5929]
[1734334623714,10.0905,222.98,222.89,6.5929]
[1734334640531,10.0892,223.01,222.9,0.12549]
[1734334654284,10.0879,223.04,222.92,0.25098]
[1734334654439,10.0879,223.04,222.93,9.06083295]
[1734334655449,10.0879,223.04,222.93,8.38818]
[1734334656951,10.0879,223.04,222.93,9.06083364]
[1734334658358,10.0879,223.04,222.93,16.68723194]
[1734334660466,10.0879,223.04,222.96,0.12549]
[1734334660972,10.0879,223.04,222.95,0.12549]
[1734334661474,20.0,223.07,222.95,0.12549]
[1734334662677,30.0868,223.07,222.95,0.12549]
[1734334664349,30.0868,223.07,222.95,7.7518883]
[1734334667170,10.0868,223.07,222.96,0.12549]
[1734334667372,10.0868,223.07,222.98,0.12549]
[1734334671446,20.0,223.08,222.98,0.25098]
[1734334674076,10.0847,223.11,223.0,0.12549]
[1734334678369,32.8590319,223.17,223.0,0.12549]
[1734334678370,0.12549,223.16,223.0,0.12549]
[1734334678687,20.0,223.12,223.0,0.12549]
[1734334679915,10.0847,223.11,223.0,0.12549]
[1734334688701,30.2541,223.11,223.0,0.12549]
[1734334692175,30.2541,223.11,222.99,1.6481]
[1734334692380,23.776884,223.08,222.99,1.6481]
[1734334693384,20.0,223.04,222.97,6.6421]
[1734334693584,0.12549,223.05,222.97,6.6421]
[1734334694521,10.0878,223.04,222.97,6.6421]
[1734334706218,20.0,223.04,222.97,6.6421]
[1734334707424,30.0879,223.04,222.97,6.6421]
[1734334710721,0.12549,223.02,222.94,1.5622]
[1734334711806,10.0892,223.01,222.94,1.5622]
[1734334718518,40.1757,223.04,222.96,6.6368]
[1734334718519,20.0,223.04,222.96,6.6368]
[1734334719026,10.0878,223.05,222.96,6.6368]
[1734334719932,10.21149,223.08,222.96,6.6368]
[1734334720103,23.776884,223.07,222.96,6.6368]
[1734334720508,20.0,223.04,222.96,6.6368]
[1734334722020,30.0881,223.04,222.96,6.6368]
[1734334730918,20.1721,223.08,222.97,0.12549]
[1734334732716,12.78847061,223.13,222.99,8.36539]
[1734334733041,0.12549,223.12,222.99,15.9917883]
[1734334733224,10.0838,223.13,222.99,15.9917883]
[1734334734217,30.0853,223.1,222.99,15.9917883]
[1734334737444,23.902374,223.07,222.95,6.99291856]
[1734334737744,24.027864,223.07,222.92,6.6298]
[1734334738442,24.027864,223.07,222.93,0.12549]
[1734334738629,10.0869,223.06,222.93,0.12549]
[1734334739451,20.0,223.05,222.93,0.12549]
[1734334739619,23.902374,223.07,222.93,0.12549]
[1734334740037,10.0856,223.09,222.96,7.97639]
[1734334740229,10.0856,223.09,222.96,16.27537018]
[1734334741020,10.0856,223.09,222.96,8.64897188]
[1734334745050,10.0856,223.09,222.96,16.27537018]
[1734334745347,10.0856,223.09,222.96,8.64897188]
[1734334746543,10.0856,223.09,222.96,16.27537018]
[1734334747748,10.0856,223.09,222.98,0.12549]
[1734334748048,10.0856,223.09,222.98,0.79797223]
[1734334748251,10.0856,223.09,222.98,8.42437053]
[1734334748424,1.5869,223.22,223.03,0.12549]
[1734334748628,30.2418,223.2,223.04,0.12549]
[1734334749565,0.12549,223.17,223.06,0.12549]
[1734334749733,10.0815,223.18,223.06,0.12549]
[1734334750345,20.0,223.15,223.06,0.12549]
[1734334750645,20.12549,223.17,223.06,0.12549]
[1734334750849,10.0829,223.15,223.06,0.12549]
[1734334752572,10.0829,223.15,223.07,6.6181]
[1734334787453,9.0829,223.15,223.07,6.6181]
[1734334792161,23.902374,223.14,223.07,6.6181]
[1734334792360,9.0829,223.15,223.05,1.5947]
[1734334792361,23.902374,223.1,223.05,1.5947]
[1734334792561,20.0,223.11,223.05,1.5947]
[1734334792760,9.0829,223.15,223.05,1.5947]
[1734334792761,20.0,223.12,223.05,1.5947]
[1734334793573,10.0847,223.11,223.05,1.5947]
[1734334805390,20.0,223.12,223.05,1.5947]
[1734334806982,10.0844,223.12,223.05,1.5947]
[1734334809565,10.0844,223.12,223.02,6.6564]
[1734334809771,23.902374,223.11,223.02,6.6564]
[1734334810992,10.0851,223.1,223.02,6.6564]
[1734334811176,23.902374,223.09,223.02,6.6564]
[1734334812371,23.902374,223.07,223.02,6.6564]
[1734334813496,10.0869,223.06,223.02,6.6564]
[1734334814973,0.12549,223.05,222.99,1.5788]
[1734334815179,23.902374,223.03,222.96,6.5028]
[1734334815796,0.12549,222.99,222.96,6.5028]
[1734334815968,23.902374,222.99,222.94,1.5847]
[1734334817010,10.0905,222.98,222.94,1.5847]
[1734334817377,10.0905,222.98,222.91,6.5028]
[1734334818095,10.0914,222.96,222.91,6.5028]
[1734334821880,23.776884,222.99,222.91,6.5028]
[1734334824583,10.21599,222.98,222.91,6.5028]
[1734334824785,23.776884,222.97,222.91,6.5028]
[1734334827108,10.21599,222.98,222.91,6.5028]
[1734334827279,10.0905,222.98,222.91,6.5028]
[1734334829514,10.0914,222.96,222.91,6.5028]
[1734334831210,34.117964,222.99,222.91,6.5028]
[1734334832503,34.117964,222.99,222.89,1.5847]
[1734334833419,0.12549,222.95,222.86,6.4541]
[1734334833599,24.027864,222.95,222.86,6.4541]
[1734334833929,24.027864,222.95,222.86,6.35539559]
[1734334834095,24.027864,222.95,222.83,1.6008]
[1734334834295,24.027864,222.91,222.83,1.6008]
[1734334835418,23.902374,222.89,222.78,1.6562]
[1734334836024,0.12549,222.88,222.78,1.6562]
[1734334836198,0.37647,222.88,222.78,1.6562]
[1734334836584,0.37647,222.88,222.72,6.51150094]
[1734334837102,20.0,222.86,222.73,6.0235]
[1734334837304,20.0,222.84,222.73,6.0235]
[1734334837509,20.0,222.83,222.73,6.0235]
[1734334838090,23.776884,222.82,222.73,6.0235]
[1734334838281,33.874884,222.82,222.73,6.0235]
[1734334841714,0.12549,222.81,222.73,6.0235]
[1734334841890,23.776884,222.79,222.73,6.0235]
[1734334843590,10.0987,222.8,222.73,6.0235]
[1734334846111,23.776884,222.83,222.73,6.0235]
[1734334851103,30.0971,222.84,222.73,6.0235]
[1734334851104,23.776884,222.81,222.73,6.0235]
[1734334853214,10.0987,222.8,222.73,6.0235]
[1734334859216,23.902374,222.79,222.73,6.0235]
[1734334859412,23.902374,222.79,222.66,5.39757234]
[1734334859413,23.902374,222.79,222.68,6.4806]
[1734334859629,0.12549,222.78,222.68,6.4806]
[1734334860135,0.12549,222.77,222.68,6.4806]
[1734334860504,0.12549,222.74,222.68,6.4806]
[1734334861248,0.12549,222.74,222.66,0.5254714]
[1734334861611,0.12549,222.72,222.66,0.5254714]
[1734334862232,24.027864,222.72,222.66,0.5254714]
[1734334863319,0.12549,222.7,222.66,0.5254714]
[1734334863739,23.902374,222.7,222.66,0.5254714]
[1734334863949,0.12549,222.7,222.66,0.5254714]
[1734334864124,10.1028,222.71,222.66,0.5254714]
[1734334864718,20.0,222.72,222.66,0.5254714]
[1734334865021,0.12549,222.74,222.66,0.5254714]
[1734334867342,20.0,222.76,222.66,0.5254714]
[1734334867523,20.0,222.75,222.66,0.5254714]
[1734334868124,0.12549,222.74,222.66,0.5254714]
[1734334869353,10.22719,222.74,222.66,0.5254714]
[1734334869724,0.12549,222.72,222.66,0.5254714]
[1734334870822,0.12549,222.7,222.66,0.5254714]
[1734334871730,10.1028,222.71,222.66,0.5254714]
[1734334872246,24.027864,222.68,222.66,0.5254714]
[1734334873739,34.006974,222.67,222.66,0.5254714]
[1734334873959,34.132464,222.67,222.66,7.14e-05]
[1734334875348,0.12549,222.7,222.66,7.14e-05]
[1734334875642,23.776884,222.7,222.66,7.14e-05]
[1734334876350,0.12549,222.69,222.66,7.14e-05]
[1734334877035,0.12549,222.7,222.66,7.14e-05]
[1734334877432,10.1028,222.71,222.66,7.14e-05]
[1734334878834,0.12549,222.7,222.66,7.14e-05]
[1734334879164,10.1037,222.69,222.66,7.14e-05]
[1734334880754,10.23009,222.67,222.66,7.14e-05]
[1734334881060,34.006974,222.67,222.66,7.14e-05]
[1734334881631,10.1046,222.67,222.66,7.14e-05]
[1734334882038,21.7778,222.74,222.66,7.14e-05]
[1734334882039,43.902374,222.7,222.66,7.14e-05]
[1734334882260,20.12549,222.7,222.66,7.14e-05]
[1734334883466,10.1037,222.69,222.66,7.14e-05]
[1734334884442,23.902374,222.73,222.66,7.14e-05]
[1734334884443,10.1023,222.73,222.67,6.4893]
[1734334885342,10.22509,222.78,222.67,6.4893]
[1734334885757,20.0,222.75,222.67,6.4893]
[1734334886247,0.12549,222.75,222.67,6.4893]
[1734334886453,20.0,222.74,222.67,6.4893]
[1734334887437,20.0,222.75,222.67,6.4893]
[1734334887646,10.1001,222.77,222.67,6.4893]
[1734334888937,0.12549,222.8,222.67,6.4893]
[1734334889161,23.902374,222.8,222.67,6.4893]
[1734334889663,20.0,222.78,222.67,6.4893]
[1734334889851,0.12549,222.8,222.68,0.12549]
[1734334890039,10.22429,222.8,222.68,0.12549]
[1734334895183,10.0988,222.8,222.7,0.12549]
[1734334895369,2.66839403,222.87,222.73,6.4284]